bitfinex/quotes_ETHUSD_20251218
["timestamp","ask_amount","ask_price","bid_price","bid_amount"]
[1766099508736,3.1786,2836.1,2835.7,0.56]
[1766099509818,2.0828,2836.3,2835.7,0.56]
[1766099510024,5.2614,2836.3,2835.7,6.2318]
[1766099510330,5.2614,2836.3,2835.7,6.85508]
[1766099510712,0.562,2836.7,2835.6,0.001]
[1766099510913,5.238,2836.6,2835.6,0.001]
[1766099511146,2.0594,2836.3,2835.6,0.001]
[1766099511348,2.0574,2835.7,2835.1,0.001]
[1766099511648,7.285157,2836.1,2835.1,0.001]
[1766099511649,5.236,2835.5,2835.1,0.001]
[1766099511849,0.56,2835.8,2835.1,0.001]
[1766099512040,0.56,2835.8,2835.5,0.001]
[1766099512346,5.2284,2835.6,2835.5,0.001]
[1766099512920,0.56,2835.8,2835.1,0.001]
[1766099513233,3.1786,2835.5,2835.1,0.001]
[1766099513542,5.2208,2835.5,2835.1,0.001]
[1766099520240,3.1786,2835.4,2835.1,0.001]
[1766099520441,7.29245396,2835.3,2834.8,0.001]
[1766099520648,7.29245396,2835.9,2834.6,0.001]
[1766099520649,3.1786,2834.9,2834.6,0.001]
[1766099520940,3.1786,2835.5,2834.9,2.349]
[1766099521166,1.984,2835.6,2834.8,7.85245396]
[1766099521362,1.984,2835.6,2835.0,5.6718]
[1766099521642,5.1626,2835.6,2835.0,5.6718]
[1766099522154,5.1626,2835.6,2835.0,5.6738]
[1766099523263,3.2278,2835.7,2835.0,2.351]
[1766099523478,5.193,2835.5,2835.0,2.351]
[1766099524580,3.2278,2835.7,2835.0,0.002]
[1766099524750,5.1862,2835.6,2835.0,0.002]
[1766099524942,3.2278,2835.5,2835.0,0.002]
[1766099525143,5.1794,2835.5,2835.0,0.002]
[1766099526346,5.1794,2835.5,2835.0,2.2651]
[1766099526568,5.1794,2835.5,2835.0,5.5178]
[1766099531286,0.561,2835.8,2835.0,0.002]
[1766099531490,3.2278,2835.5,2834.6,0.001]
[1766099531694,5.1402,2835.2,2834.8,0.56]
[1766099531859,5.1402,2835.2,2834.6,5.5168]
[1766099532258,5.1402,2835.2,2834.7,2.2631]
[1766099533183,3.2278,2835.2,2834.7,2.2631]
[1766099533389,5.1037,2835.4,2834.7,12.49355396]
[1766099533965,7.29245396,2835.7,2834.7,5.2583]
[1766099534184,1.8893,2835.5,2834.6,0.001]
[1766099534423,3.2083,2835.2,2834.6,0.561]
[1766099534579,5.0976,2835.1,2834.6,5.8193]
[1766099534780,7.29245396,2835.7,2834.6,0.561]
[1766099534980,3.2083,2835.3,2834.6,0.561]
[1766099535307,5.0914,2835.1,2834.6,0.561]
[1766099535682,10.81892124,2835.7,2834.7,5.2583]
[1766099536016,5.0854,2835.6,2834.6,0.561]
[1766099536419,3.2083,2835.6,2834.6,0.561]
[1766099536597,1.8771,2835.2,2834.6,0.561]
[1766099536916,5.0854,2835.1,2834.6,2.8813]
[1766099537593,3.2083,2835.0,2834.6,0.561]
[1766099538615,0.56,2835.4,2834.6,5.8193]
[1766099538916,5.0675,2835.3,2834.7,2.3203]
[1766099539220,5.0675,2835.3,2834.7,5.2583]
[1766099540018,5.0617,2835.0,2834.6,0.001]
[1766099542724,1.8418,2835.2,2834.6,0.001]
[1766099542919,5.0501,2835.2,2834.6,0.001]
[1766099543319,1.8418,2835.2,2834.6,0.001]
[1766099543647,3.2083,2835.1,2834.6,0.001]
[1766099544022,5.0388,2835.1,2834.6,0.001]
[1766099546744,1.8305,2835.1,2834.6,0.001]
[1766099547042,3.2083,2835.0,2834.6,0.001]
[1766099551139,0.001,2835.5,2834.9,2.3203]
[1766099551339,0.001,2835.5,2835.0,0.23203]
[1766099551647,1.7933,2835.5,2834.9,5.8183]
[1766099551844,0.001,2835.5,2835.1,2.3203]
[1766099552371,0.001,2835.5,2835.2,5.2583]
[1766099556581,0.001,2835.5,2835.2,12.55075396]
[1766099558052,0.001,2835.5,2835.2,7.29245396]
[1766099558249,0.001,2835.5,2835.2,12.55075396]
[1766099563555,0.001,2835.8,2835.3,5.2463]
[1766099564380,3.0273,2835.8,2835.3,5.2463]
[1766099564972,4.7468,2835.8,2835.3,5.2463]
[1766099565171,0.002,2835.5,2835.3,5.2463]
[1766099565365,4.7468,2835.8,2835.3,5.2463]
[1766099568359,0.001,2835.8,2835.5,7.29245396]
[1766099568564,4.7154,2836.1,2835.5,12.53875396]
[1766099568991,4.7154,2836.1,2835.5,7.29245396]
[1766099569288,0.002,2836.1,2835.8,7.29245396]
[1766099569666,1.6765,2836.4,2836.0,7.29245396]
[1766099569860,4.7028,2836.4,2836.0,7.29245396]
[1766099570065,1.6765,2836.4,2835.8,12.53875396]
[1766099570366,3.0263,2836.3,2835.8,12.53875396]
[1766099570663,4.6923,2836.3,2835.8,12.53875396]
[1766099570868,4.6923,2836.3,2835.9,1.3098754]
[1766099571493,4.6923,2836.3,2836.0,7.29245396]
[1766099571794,5.242,2836.6,2836.0,12.53875396]
[1766099572096,0.001,2837.0,2836.5,7.29245396]
[1766099572392,0.001,2837.0,2836.8,7.29245396]
[1766099572903,0.002,2837.3,2836.8,7.29245396]
[1766099574305,0.0994,2837.2,2836.6,7.29245396]
[1766099574603,0.8053,2836.9,2836.5,0.56]
[1766099574799,0.8053,2836.9,2836.5,1.64046467]
[1766099575307,0.8935,2836.6,2836.2,7.85245396]
[1766099575603,0.8935,2836.6,2836.0,5.2463]
[1766099575781,0.8935,2836.6,2836.0,2.7234]
[1766099576172,0.8935,2836.6,2836.0,5.8063]
[1766099576397,0.8935,2836.6,2836.1,1.30919745]
[1766099576896,0.56,2837.2,2836.1,3.47259745]
[1766099577066,0.0744,2836.8,2836.1,6.55549745]
[1766099577263,0.8713,2836.8,2836.1,6.55549745]
[1766099577806,0.7969,2837.2,2836.6,7.28567451]
[1766099577969,0.7969,2837.2,2836.6,12.53197451]
[1766099578170,0.002,2837.3,2836.6,13.84107196]
[1766099578387,0.002,2837.3,2836.7,5.2463]
[1766099578901,0.002,2837.0,2836.7,5.2463]
[1766099579596,0.002,2837.0,2836.4,0.559]
[1766099579597,0.7935,2837.0,2836.4,0.559]
[1766099579796,0.847,2836.9,2836.4,0.559]
[1766099580100,0.839,2836.8,2836.4,1.86809745]
[1766099580907,0.0422,2836.7,2836.4,1.86809745]
[1766099581067,0.8285,2836.7,2836.4,0.559]
[1766099581271,0.8285,2836.7,2836.0,7.28667451]
[1766099581272,0.7863,2836.7,2836.0,7.28667451]
[1766099581587,0.8285,2836.6,2836.1,0.559]
[1766099581789,0.7811,2836.9,2836.1,0.559]
[1766099582099,0.8095,2836.9,2836.1,0.559]
[1766099582393,0.7811,2836.8,2836.2,1.28748745]
[1766099582594,0.8095,2836.7,2836.1,0.559]
[1766099582999,0.0207,2836.6,2836.1,0.559]
[1766099583197,0.7993,2836.6,2836.1,0.559]
[1766099586106,0.561,2837.0,2836.1,5.5882]
[1766099586309,0.561,2837.0,2836.2,5.0292]
[1766099586491,0.561,2837.0,2836.4,2.9951]
[1766099586804,0.561,2837.0,2836.2,5.0292]
[1766099587023,1.3296,2837.0,2836.2,5.0292]
[1766099587234,0.002,2837.3,2836.7,2.0341]
[1766099587526,0.002,2837.3,2836.7,5.96117745]
[1766099588624,0.7682,2837.3,2836.7,5.96117745]
[1766099589927,0.7682,2837.3,2836.7,0.93197745]
[1766099592326,0.7682,2837.3,2836.1,0.46438023]
[1766099592530,0.7569,2837.2,2836.1,0.46438023]
[1766099592730,0.7546,2837.0,2836.0,0.001]
[1766099593634,0.7546,2837.0,2835.7,4.9553]
[1766099593817,0.7546,2837.0,2836.1,0.001]
[1766099595639,0.7479,2836.8,2836.1,0.001]
[1766099599036,0.92502802,2836.8,2836.1,0.001]
[1766099599228,0.7479,2836.8,2836.1,0.001]
[1766099599427,0.7479,2836.8,2836.1,4.9563]
[1766099599948,0.7479,2836.8,2836.1,2.0126]
[1766099600160,0.7479,2836.8,2836.1,0.001]
[1766099600642,0.7479,2836.8,2835.7,4.9553]
[1766099600840,0.92502802,2836.8,2835.8,0.49553]
[1766099601408,0.92502802,2836.8,2836.0,0.001]
[1766099601608,0.7353,2836.6,2836.0,0.001]
[1766099602619,0.559,2836.5,2836.0,0.001]
[1766099602818,0.7312,2836.5,2836.0,0.001]
[1766099604831,0.7272,2836.9,2836.0,4.9563]
[1766099605057,0.7272,2836.7,2836.1,2.9437]
[1766099605245,0.559,2836.6,2836.2,4.9553]
[1766099605557,0.559,2836.6,2836.1,0.29447]
[1766099605944,1.2843,2836.6,2836.1,0.29447]
[1766099606653,0.002,2837.0,2836.1,0.29447]
[1766099606853,0.559,2836.9,2836.0,0.001]
[1766099607058,0.559,2836.9,2836.4,2.0116]
[1766099607259,1.2824,2836.9,2836.4,2.0116]
[1766099607560,1.2824,2836.9,2836.3,2.9437]
[1766099608160,0.7215,2836.8,2836.0,4.9563]
[1766099608347,0.7215,2836.8,2836.1,0.49563]
[1766099608858,0.7196,2836.7,2836.1,0.49563]
[1766099609231,0.7196,2836.7,2836.0,2.0126]
[1766099610064,0.7196,2836.7,2836.0,4.9563]
[1766099613780,0.7196,2836.7,2836.1,4.9553]
[1766099616374,0.7216,2836.7,2836.1,4.9553]
[1766099618591,0.002,2837.0,2836.2,7.32093295]
[1766099618900,0.002,2837.0,2836.7,4.9553]
[1766099619211,0.002,2837.0,2836.4,4.9553]
[1766099619365,0.706,2837.0,2836.4,4.9553]
[1766099619564,0.706,2837.0,2836.0,0.001]
[1766099620097,0.706,2837.0,2836.1,2.9437]
[1766099620277,0.706,2837.0,2836.1,3.43933]
[1766099620464,0.706,2837.0,2836.1,5.45093]
[1766099622594,0.706,2837.0,2836.0,0.001]
[1766099623086,0.706,2837.0,2836.0,4.9038]
[1766099623298,0.6959,2836.9,2836.0,4.9038]
[1766099623905,0.6943,2836.9,2836.2,2.0356]
[1766099624066,0.6943,2836.9,2836.2,4.9028]
[1766099624912,0.6943,2836.9,2836.3,0.49028]
[1766099625191,0.6943,2836.9,2836.0,4.9038]
[1766099626506,0.6943,2836.9,2836.0,2.8682]
[1766099626831,0.6943,2836.9,2836.1,2.0356]
[1766099627190,0.6943,2836.9,2836.1,4.9028]
[1766099628414,0.6943,2836.9,2836.1,2.8672]
[1766099628734,0.561,2837.0,2836.6,2.0356]
[1766099629093,0.6842,2836.9,2836.2,2.32242]
[1766099629790,0.6842,2836.9,2836.2,5.18962]
[1766099630893,0.6862,2836.9,2836.2,5.18962]
[1766099631726,0.6862,2836.9,2836.2,3.15402]
[1766099631904,0.6862,2836.9,2836.3,2.351002]
[1766099632331,0.6862,2836.9,2836.3,5.218202]
[1766099632537,0.6862,2836.9,2836.4,4.9028]
[1766099632538,0.002,2836.9,2836.4,4.9028]
[1766099635021,0.6742,2836.9,2836.4,4.9028]
[1766099635429,0.6742,2836.9,2836.3,0.315402]
[1766099636330,0.6742,2836.9,2836.3,5.218202]
[1766099638824,0.6742,2836.9,2836.3,5.219202]
[1766099639437,0.6742,2836.9,2836.4,6.15333244]
[1766099639659,0.002,2836.9,2836.4,6.15333244]
[1766099639818,0.6627,2836.8,2836.3,0.316402]
[1766099640019,0.6627,2836.8,2836.3,0.001]
[1766099641250,0.6627,2836.8,2836.1,2.0356]
[1766099641469,0.6627,2836.8,2836.0,0.001]
[1766099641620,0.6599,2836.6,2836.0,0.001]
[1766099641819,0.6599,2836.6,2835.4,0.46438023]
[1766099642132,0.6553,2836.4,2835.6,2.8717]
[1766099642339,0.6553,2836.3,2835.6,2.8717]
[1766099643934,0.6518,2836.3,2835.8,2.8717]
[1766099644257,0.6518,2836.3,2835.7,1.9379]
[1766099645321,0.559,2836.4,2835.8,4.8096]
[1766099645851,1.2092,2836.4,2835.8,4.8096]
[1766099649862,1.2025,2836.5,2835.8,4.8096]
[1766099651230,0.559,2836.5,2835.8,2.8717]
[1766099651435,0.6403,2836.4,2835.8,2.8717]
[1766099651637,0.6403,2836.4,2835.9,0.48096]
[1766099652675,0.559,2836.5,2836.0,4.8096]
[1766099652975,0.6356,2836.5,2836.0,4.8096]
[1766099654905,0.6376,2836.5,2836.0,4.8096]
[1766099656663,0.002,2836.5,2836.0,4.8096]
[1766099656868,0.002,2836.5,2836.1,5.466256]
[1766099657270,0.002,2836.9,2836.4,4.9372]
[1766099657474,0.559,2836.8,2836.4,4.9372]
[1766099657870,0.002,2836.9,2836.5,4.9372]
[1766099658072,0.002,2837.3,2836.7,7.28612235]
[1766099658301,0.002,2837.3,2836.8,0.76386322]
[1766099658509,0.002,2837.3,2837.0,4.9372]
[1766099658684,0.002,2837.3,2836.9,7.28612235]
[1766099658890,0.002,2837.3,2837.1,4.9372]
[1766099659590,0.002,2837.3,2836.9,4.9372]
[1766099659786,0.002,2837.3,2836.9,6.23239346]
[1766099661208,0.6258,2837.2,2836.8,0.72861224]
[1766099661410,0.6258,2837.2,2836.6,1.8768]
[1766099661612,0.002,2837.3,2836.7,9.16292235]
[1766099661780,0.002,2837.3,2836.7,12.22332235]
[1766099666720,0.002,2837.3,2836.8,1.8768]
[1766099667915,0.002,2837.3,2836.8,4.9372]
[1766099668121,0.002,2837.3,2836.9,1.22233224]
[1766099668497,0.002,2837.7,2837.1,7.28612235]
[1766099668688,0.002,2837.7,2837.3,4.9372]
[1766099668689,0.561,2837.7,2837.3,4.9372]
[1766099669189,0.002,2837.7,2837.3,4.9372]
[1766099669391,0.002,2837.7,2837.4,4.9372]
[1766099674311,0.002,2837.9,2837.6,3.0604]
[1766099674515,0.002,2838.0,2837.6,3.0604]
[1766099674516,0.002,2838.0,2837.6,0.30604]
[1766099674832,0.002,2838.5,2837.8,12.22332235]
[1766099674833,0.6118,2838.5,2837.8,12.22332235]
[1766099675012,0.6118,2838.5,2838.1,3.0604]
[1766099675013,0.002,2838.5,2838.1,3.0604]
[1766099676432,0.002,2838.5,2837.6,4.9372]
[1766099676633,0.002,2838.5,2837.7,7.28612235]
[1766099676943,0.002,2838.5,2837.8,1.22233224]
[1766099677308,0.002,2838.5,2837.8,6.15953224]
[1766099679027,0.002,2838.5,2837.8,4.9372]
[1766099680835,0.002,2838.5,2837.6,7.84512235]
[1766099680836,0.002,2838.5,2837.6,5.4962]
[1766099681033,0.002,2838.5,2837.6,0.559]
[1766099681240,0.002,2838.5,2837.7,4.9372]
[1766099681736,0.002,2838.5,2837.6,0.559]
[1766099681917,0.002,2838.5,2837.6,1.89313223]
[1766099683807,0.002,2838.5,2837.6,6.83513223]
[1766099686544,0.002,2838.5,2837.6,4.942]
[1766099690150,0.002,2838.5,2837.8,4.942]
[1766099690339,0.559,2838.4,2837.6,4.942]
[1766099697357,0.002,2838.5,2837.7,2.9207]
[1766099697542,0.002,2838.5,2837.8,0.29207]
[1766099697746,0.002,2838.5,2838.0,4.942]
[1766099701525,0.002,2838.5,2837.8,5.23407]
[1766099703352,0.002,2838.5,2837.8,5.07767]
[1766099704462,0.002,2838.5,2837.5,0.46538023]
[1766099706674,0.558,2838.4,2837.8,4.7856]
[1766099708958,0.558,2838.4,2837.6,4.7856]
[1766099710767,0.56,2838.4,2837.6,4.7856]
[1766099710978,0.56,2838.4,2837.5,0.001]
[1766099712173,0.56,2838.4,2837.5,4.7866]
[1766099712775,0.56,2838.4,2837.5,0.001]
[1766099713351,7.2758581,2838.3,2837.2,0.558]
[1766099713675,7.2758581,2838.3,2837.2,1.05932016]
[1766099713881,7.2758581,2838.3,2837.3,0.46438023]
[1766099715778,0.56,2838.4,2837.4,5.25858023]
[1766099719190,0.56,2838.4,2837.4,1.8037]
[1766099719390,0.56,2838.4,2837.5,0.46438023]
[1766099719700,0.56,2838.4,2837.3,1.52471909]
[1766099719995,7.2758581,2838.3,2837.3,1.52471909]
[1766099720703,7.2758581,2838.0,2837.3,1.52471909]
[1766099720860,7.2758581,2837.7,2836.7,1.8037]
[1766099721066,7.2758581,2837.7,2836.7,2.86325961]
[1766099721265,7.2758581,2837.7,2836.8,0.46438023]
[1766099721694,7.2758581,2837.7,2836.7,2.85355619]
[1766099721992,7.2758581,2837.7,2836.7,1.04985619]
[1766099722366,1.61755961,2837.9,2836.7,0.58547596]
[1766099722568,1.61755961,2837.9,2837.0,4.7942]
[1766099723995,1.61755961,2837.9,2836.7,0.58547596]
[1766099723996,0.558,2837.9,2837.1,2.9905]
[1766099724199,0.558,2837.9,2836.8,0.46438023]
[1766099724368,0.558,2837.9,2836.7,1.60785619]
[1766099724703,0.558,2837.9,2837.0,1.8037]
[1766099724867,0.558,2837.9,2837.1,4.7942]
[1766099725593,0.558,2837.9,2836.9,1.0594698]
[1766099725793,0.558,2837.9,2836.8,0.46438023]
[1766099726091,0.558,2837.9,2836.8,1.52390616]
[1766099726797,7.2758581,2837.7,2836.8,1.05952593]
[1766099727368,0.558,2837.9,2836.7,4.7942]
[1766099727697,7.2758581,2837.7,2836.7,1.05956335]
[1766099727893,7.2758581,2837.7,2836.6,0.46538023]
[1766099728099,7.2758581,2837.7,2836.6,1.52496978]
[1766099728303,0.558,2837.9,2836.6,1.06058955]
[1766099728304,7.2758581,2837.4,2836.6,1.06058955]
[1766099728505,7.2758581,2837.4,2836.4,0.001]
[1766099728506,0.558,2837.3,2836.4,0.001]
[1766099730172,0.46913252,2837.3,2836.4,0.001]
[1766099735218,0.558,2837.2,2836.5,2.9905]
[1766099735380,1.05971306,2837.4,2836.8,4.7942]
[1766099735381,0.558,2837.1,2836.8,4.7942]
[1766099736109,0.558,2837.1,2836.4,0.001]
[1766099736482,0.558,2837.1,2836.5,0.46438023]
[1766099738415,0.558,2837.1,2836.6,0.52595802]
[1766099739130,0.558,2837.1,2836.5,4.7942]
[1766099739421,0.558,2837.1,2836.5,4.7952]
[1766099744017,0.558,2837.1,2836.6,4.9543]
[1766099744940,0.558,2837.1,2836.5,0.001]
[1766099746530,0.558,2837.1,2836.4,0.001]
[1766099746705,0.558,2837.1,2836.1,0.46538023]
[1766099746910,1.61782537,2837.1,2836.1,1.00734825]
[1766099747418,1.61782537,2837.1,2836.1,0.001]
[1766099747731,7.2758581,2837.0,2835.8,1.06082537]
[1766099747933,7.2758581,2837.0,2835.9,0.46438023]
[1766099748136,7.2758581,2837.0,2835.9,5.41868023]
[1766099748137,8.3357284,2837.0,2835.9,5.41868023]
[1766099748437,0.558,2837.1,2836.5,0.001]
[1766099748651,1.0598703,2837.0,2836.5,0.001]
[1766099748850,0.002,2837.3,2836.5,4.9553]
[1766099749149,1.61776173,2837.2,2836.6,4.9543]
[1766099752846,1.61776173,2837.2,2836.5,0.001]
[1766099753018,1.61776173,2837.2,2836.5,4.9553]
[1766099753220,1.26817593,2837.2,2836.5,4.9553]
[1766099753449,0.558,2837.1,2836.5,4.9553]
[1766099757257,0.558,2837.1,2836.5,0.001]
[1766099757844,0.558,2837.1,2836.1,4.9543]
[1766099758850,0.558,2837.1,2835.9,0.558]
[1766099758851,7.28518159,2836.9,2835.9,0.558]
[1766099759028,7.28518159,2836.9,2835.9,0.46438023]
[1766099759233,7.28518159,2836.9,2835.9,3.53488023]
[1766099759548,7.28518159,2836.9,2835.9,5.41868023]
[1766099759738,1.05986656,2837.0,2835.8,7.28618159]
[1766099759937,0.558,2836.9,2836.3,1.8838]
[1766099760253,0.558,2836.9,2836.0,3.0705]
[1766099760544,0.558,2836.9,2836.2,4.9543]
[1766099762054,0.558,2836.9,2836.0,0.46538023]
[1766099762567,0.558,2836.9,2835.8,0.001]
[1766099762568,4.08305525,2836.9,2835.8,0.001]
[1766099762737,7.28518159,2836.7,2835.8,0.001]
[1766099766941,7.28518159,2836.7,2835.8,0.46538023]
[1766099767673,1.05999014,2836.8,2835.8,0.46538023]
[1766099767870,8.34517173,2836.8,2835.8,4.9009]
[1766099769774,1.05999014,2836.8,2835.8,4.9009]
[1766099769940,7.28518159,2836.7,2835.8,4.9009]
[1766099771348,7.28518159,2836.7,2835.9,4.8999]
[1766099772286,0.559,2836.6,2835.9,4.8999]
[1766099772442,0.559,2836.6,2836.0,4.8999]
[1766099772786,0.559,2836.6,2835.8,5.42288023]
[1766099773141,0.559,2836.6,2835.8,0.001]
[1766099773142,7.28518159,2836.3,2835.8,0.001]
[1766099773374,7.28518159,2836.5,2835.8,0.001]
[1766099773783,0.559,2836.6,2835.8,0.001]
[1766099774086,7.28518159,2836.5,2835.8,0.001]
[1766099776462,0.559,2836.6,2835.8,0.001]
[1766099776685,7.84418159,2836.6,2835.8,0.001]
[1766099777487,7.84418159,2836.6,2835.6,6.01749388]
[1766099777488,7.28518159,2836.2,2835.6,1.05999388]
[1766099777787,0.559,2836.2,2835.6,1.05999388]
[1766099777955,0.559,2836.2,2835.5,0.001]
[1766099778357,0.559,2836.2,2835.5,0.46538023]
[1766099778555,0.559,2836.2,2835.5,1.16956764]
[1766099778757,0.559,2836.2,2835.5,6.12706764]
[1766099781389,0.559,2836.2,2835.6,4.9575]
[1766099781782,0.002,2836.7,2835.5,7.28618159]
[1766099782092,0.559,2836.6,2835.6,4.9575]
[1766099782321,7.28518159,2836.5,2835.5,0.001]
[1766099782606,7.28518159,2836.5,2835.5,0.46538023]
[1766099782764,7.28518159,2836.5,2835.5,4.9585]
[1766099782965,0.559,2836.6,2835.6,4.9575]
[1766099783182,0.559,2836.6,2835.5,0.001]
[1766099783383,0.559,2836.6,2835.6,4.9575]
[1766099783666,0.002,2836.7,2836.2,4.9575]
[1766099783889,0.002,2836.7,2836.3,1.22426816]
[1766099784088,0.002,2836.7,2836.4,4.9575]
[1766099784277,0.002,2836.7,2836.3,1.22426816]
[1766099784477,0.002,2836.7,2836.5,4.9575]
[1766099784802,0.002,2837.2,2836.5,4.9575]
[1766099784803,0.002,2837.2,2836.5,1.9248]
[1766099785097,0.561,2837.2,2836.6,4.9575]
[1766099785661,0.561,2837.2,2836.3,1.22426816]
[1766099786000,0.561,2837.2,2836.4,4.9575]
[1766099786407,0.561,2837.2,2836.3,1.22426816]
[1766099786587,0.561,2837.2,2836.4,4.9575]
[1766099786779,0.561,2837.2,2836.3,1.22426816]
[1766099787181,0.561,2837.2,2836.4,4.9575]
[1766099787512,0.561,2837.2,2836.5,4.9575]
[1766099787986,0.561,2837.2,2836.1,7.84418159]
[1766099787987,7.28518159,2837.1,2836.1,5.5165]
[1766099788313,7.28518159,2837.1,2836.2,0.59828802]
[1766099788607,7.28518159,2837.1,2836.1,5.5165]
[1766099788782,7.28518159,2837.1,2836.1,4.9575]
[1766099789839,7.28518159,2837.1,2835.9,4.9575]
[1766099789987,0.561,2837.2,2836.0,5.42188023]
[1766099790316,0.561,2837.2,2836.1,4.9575]
[1766099790526,0.561,2837.2,2836.2,4.9575]
[1766099791006,0.561,2837.2,2836.2,3.0327]
[1766099791211,0.001,2837.1,2836.3,4.9575]
[1766099792779,0.001,2837.1,2836.2,1.9248]
[1766099792979,0.001,2837.1,2836.3,3.0327]
[1766099793212,0.001,2837.1,2836.3,4.9575]
[1766099793408,0.001,2837.1,2836.3,3.0327]
[1766099793577,0.001,2837.1,2836.1,4.9575]
[1766099793783,0.001,2837.1,2835.9,5.98288023]
[1766099794014,0.001,2837.1,2836.0,1.84698641]
[1766099794311,0.001,2837.1,2836.0,6.34010618]
[1766099795111,7.28618159,2837.1,2836.0,6.34010618]
[1766099795312,7.28618159,2837.1,2835.8,0.46438023]
[1766099795313,7.28518159,2836.6,2835.8,0.46438023]
[1766099795514,0.558,2836.5,2835.8,0.46438023]
[1766099798416,0.558,2836.5,2835.5,5.5165]
[1766099798611,0.558,2836.5,2835.6,0.59808802]
[1766099799886,0.56,2836.5,2835.6,0.59808802]
[1766099800332,0.56,2836.5,2835.7,0.46438023]
[1766099800816,0.56,2836.5,2835.5,0.559]
[1766099800989,0.56,2836.5,2835.6,0.46438023]
[1766099801187,0.56,2836.5,2835.8,0.46438023]
[1766099809426,0.002,2836.5,2835.8,2.8587]
[1766099809596,0.558,2836.4,2836.0,2.8587]
[1766099809920,0.558,2836.4,2835.9,1.7905]
[1766099810125,0.558,2836.4,2835.8,2.8587]
[1766099810329,0.558,2836.4,2835.8,3.32308023]
[1766099810621,0.558,2836.4,2835.8,3.83443825]
[1766099810994,0.558,2836.4,2835.8,5.62493825]
[1766099811801,0.558,2836.4,2835.8,0.97573825]
[1766099812009,0.558,2836.4,2835.8,0.46438023]
[1766099815226,0.558,2836.4,2835.5,3.88208023]
[1766099815400,0.558,2836.4,2835.5,5.67258023]
[1766099817131,0.558,2836.4,2835.8,0.001]
[1766099818009,0.558,2836.4,2835.5,0.001]
[1766099818211,7.2887727,2835.5,2834.5,4.6502]
[1766099818513,0.558,2835.4,2834.5,4.6502]
[1766099818712,1.02238023,2835.4,2834.5,0.001]
[1766099818921,1.02238023,2835.4,2834.1,4.6492]
[1766099818922,2.08280125,2835.4,2834.1,4.6492]
[1766099819126,2.08280125,2835.4,2834.3,4.6512]
[1766099819323,1.02238023,2835.4,2834.3,0.002]
[1766099819631,1.06045475,2835.3,2834.3,0.002]
[1766099819865,1.06045475,2835.3,2834.6,1.7905]
[1766099820041,0.83704903,2836.2,2835.0,4.6492]
[1766099820042,0.558,2835.2,2835.0,4.6492]
[1766099820335,0.14137697,2835.7,2834.7,0.17905]
[1766099820538,0.558,2835.6,2834.6,2.8587]
[1766099820839,0.558,2835.6,2834.9,4.6492]
[1766099824018,1.06028235,2836.0,2835.2,1.8469]
[1766099824345,7.2907727,2836.7,2835.3,4.7981]
[1766099824346,0.558,2835.9,2835.3,4.7981]
[1766099824944,1.06018118,2836.1,2835.3,0.47981]
[1766099825243,0.002,2836.5,2835.6,4.7981]
[1766099825443,0.002,2836.5,2835.4,2.9512]
[1766099825444,1.61811,2836.4,2835.4,2.9512]
[1766099825643,1.61811,2836.4,2835.6,4.7981]
[1766099828051,1.61811,2836.4,2835.3,7.2887727]
[1766099828052,0.558,2836.4,2835.3,7.2887727]
[1766099828246,0.558,2836.4,2835.6,1.8469]
[1766099828456,0.002,2836.5,2835.7,4.7981]
[1766099828660,0.558,2836.3,2835.7,4.7981]
[1766099831245,0.56,2836.5,2836.0,4.7981]
[1766099831477,0.002,2836.7,2836.2,1.8469]
[1766099831643,0.002,2836.7,2836.3,4.7981]
[1766099834782,0.002,2836.7,2836.5,4.8784]
[1766099836039,0.002,2836.7,2836.1,0.558]
[1766099836472,0.002,2836.7,2836.3,1.8965]
[1766099836663,0.002,2836.7,2836.4,0.18965]
[1766099841347,0.002,2836.7,2836.1,5.4364]
[1766099841542,0.002,2836.7,2836.1,0.558]
[1766099841769,0.001,2837.1,2836.2,7.6942767]
[1766099842175,0.001,2837.1,2836.6,1.8965]
[1766099842343,0.001,2837.1,2836.6,4.8784]
[1766099842544,0.001,2837.1,2836.6,5.36624]
[1766099843382,0.001,2837.1,2836.7,4.8784]
[1766099851881,0.001,2837.1,2836.6,0.48784]
[1766099852087,0.001,2837.1,2836.5,0.558]
[1766099852271,0.001,2837.1,2836.9,2.9819]
[1766099852480,0.001,2837.1,2836.9,4.8784]
[1766099853688,0.001,2837.1,2836.5,0.559]
[1766099853988,0.001,2837.1,2836.9,2.9819]
[1766099854155,0.001,2837.1,2836.8,1.8965]
[1766099854856,0.001,2837.1,2836.8,4.8784]
[1766099856985,0.001,2837.1,2836.9,4.8784]
[1766099857163,0.002,2837.3,2837.0,4.8784]
[1766099857371,0.002,2837.3,2837.1,4.8784]
[1766099857572,0.002,2837.3,2837.1,2.9819]
[1766099859482,0.002,2837.3,2837.1,4.8784]
[1766099859991,0.002,2837.7,2837.2,0.03524601]
[1766099860361,0.559,2838.3,2837.1,0.48784]
[1766099860558,0.559,2838.3,2837.6,2.9819]